fUSD/lending_fUSD_20240615
["ID","MTS","AMOUNT","RATE_DAILY","PERIOD"]
[329590216,1718469594291,-625.38036387,0.00012454,2]
[329590217,1718469594365,-400.0,0.00012552,2]
[329590218,1718469594415,-157.09089731,0.00012597,2]
[329590219,1718469594485,694.98,0.00010959,2]
[329590220,1718469601809,300.0,0.00012621,2]
[329590221,1718469604111,299.82544785,0.0001,2]
[329590228,1718469613605,6134.24347154,0.00012621,2]
[329590229,1718469613641,10000.0,0.00012621,2]
[329590230,1718469613681,10000.0,0.00012621,2]
[329590231,1718469614816,1734.87368189,0.0001,2]
[329590234,1718469646721,-10000.0,0.00012621,2]
[329590235,1718469657812,-5873.53360422,0.00012521,2]
[329590236,1718469657858,-4126.46639578,0.00012621,2]
[329590240,1718469661845,155.0,0.0001,2]
[329590241,1718469662327,155.0,0.0001,2]
[329590242,1718469664084,161.4750076,0.0001,2]
[329590243,1718469664369,-3000.0,0.00012621,2]
[329590244,1718469666094,299.71220341,0.0001,2]
[329590245,1718469676922,363.17716006,0.0001,2]
[329590246,1718469683666,-4842.071605,0.00012558,2]
[329590247,1718469683737,-158.50311314,0.0001262,2]
[329590248,1718469683809,-4999.42528186,0.00012621,2]
[329590254,1718469691520,14154.84414083,0.0001,2]
[329590255,1718469704833,244.19982082,0.0001,2]
[329590256,1718469710936,-339.01815387,0.00012557,2]
[329590257,1718469710991,-253.62978949,0.00012557,2]
[329590258,1718469711022,-345.09744606,0.00012621,2]
[329590259,1718469711054,-9062.25461058,0.00012621,2]
[329590262,1718469774065,-673.63813712,0.00012554,2]
[329590263,1718469774117,-268.98603627,0.00012555,2]
[329590264,1718469774167,-155.0,0.00012556,2]
[329590265,1718469774219,-150.0,0.0001262,2]
[329590266,1718469774282,-252.37582661,0.00012621,2]
[329590270,1718469847166,-250.0,0.00012565,2]
[329590271,1718469847203,-364.40324563,0.00012619,2]
[329590272,1718469847250,-300.0,0.0001262,2]
[329590273,1718469847318,-18241.76115356,0.00012621,2]
[329590274,1718469847361,-11507.83560081,0.00012622,2]
[329590275,1718469890984,-2642.98439919,0.00012622,2]
[329590276,1718469891031,-250.0,0.0001267,2]
[329590277,1718469891077,-8016.02,0.0001268,2]
[329590278,1718469891108,-1354.36,0.00012761,2]
[329590279,1718469891140,-342.6,0.00012785,2]
[329590280,1718469891197,-150.27,0.00012807,2]
[329590281,1718469891286,-510.93,0.00012828,2]
[329590282,1718469891366,-150.27,0.0001294,2]
[329590283,1718469891408,-8552.56560081,0.0001297,2]
[329590284,1718470030185,-680.0,0.00012049,2]
[329590285,1718470030248,-278.93813685,0.00012289,2]
[329590286,1718470030448,-673.63813712,0.00012389,2]
[329590287,1718470030537,-727.83,0.0001239,2]
[329590288,1718470030591,-535.75764162,0.00012521,2]
[329590289,1718470034254,459.83,0.00010142,2]
[329590295,1718470118304,162.62,9.588e-05,2]
[329590296,1718470149292,-364.40324563,0.00012304,2]
[329590297,1718470149336,-163.27789293,0.00012305,2]
[329590298,1718470149379,-459.83,0.00012406,2]
[329590299,1718470149420,-266.58672427,0.00012458,2]
[329590300,1718470153506,153.22,0.00012016,2]
[329590313,1718470186666,902.57,0.00012016,2]
[329590314,1718470202486,-17.72785838,0.00012521,2]
[329590315,1718470202545,-8877.27214162,0.000126,2]
[329590317,1718470210186,150.0,0.00013999,7]
[329590318,1718470221213,19863.7,0.00012016,2]
[329590321,1718470234420,-756.03810701,0.00012598,2]
[329590341,1718470238214,-744.21522923,0.00012598,2]
[329590342,1718470238264,-920.84407729,0.00012599,2]
[329590343,1718470238288,-1141.89204243,0.000126,2]
[329590344,1718470238300,-155.0,0.00012622,2]
[329590345,1718470238327,-150.0,0.00012658,2]
[329590346,1718470238352,-295.26,0.0001267,2]
[329590347,1718470238372,-295.26,0.00012673,2]
[329590348,1718470238394,-295.26,0.00012676,2]
[329590349,1718470238436,-295.26,0.0001268,2]
[329590350,1718470238456,-299.99,0.00012683,2]
[329590351,1718470238471,-826.09,0.00012683,2]
[329590352,1718470238486,-295.26,0.00012683,2]
[329590353,1718470238507,-295.26,0.00012686,2]
[329590354,1718470238531,-295.26,0.0001269,2]
[329590355,1718470238573,-295.26,0.00012693,2]
[329590356,1718470238615,-295.26,0.00012696,2]
[329590357,1718470238658,-295.26,0.000127,2]
[329590358,1718470238671,-295.26,0.00012703,2]
[329590359,1718470238717,-295.26,0.00012706,2]
[329590360,1718470238733,-295.26,0.0001271,2]
[329590361,1718470238777,-295.26,0.00012713,2]
[329590362,1718470238794,-295.26,0.00012716,2]
[329590363,1718470238806,-295.26,0.0001272,2]
[329590364,1718470238822,-295.26,0.00012723,2]
[329590365,1718470238881,-295.26,0.00012726,2]
[329590366,1718470238895,-295.26,0.0001273,2]
[329590367,1718470238919,-150.0,0.0001273,2]
[329590368,1718470238953,-295.26,0.00012733,2]
[329590369,1718470238967,-1476.0078832,0.0001297,2]
[329590370,1718470239012,-22974.31824805,0.0001298,2]
[329590371,1718470239080,-150.27,0.00013074,2]
[329590372,1718470239110,-150.27,0.00013207,2]
[329590373,1718470239121,-499.99,0.00013338,2]
[329590374,1718470239147,-150.27,0.00013341,2]
[329590375,1718470239169,-200.0,0.000134,4]
[329590376,1718470239184,-28893.01638716,0.00013473,2]
[329590377,1718470239221,-150.27,0.00013474,2]
[329590378,1718470239237,-155.0,0.00013495,2]
[329590379,1718470239255,-441.33478895,0.00013495,2]
[329590380,1718470239276,-441.11066903,0.00013495,2]
[329590384,1718470239312,-30000.0,0.00013496,2]
[329590386,1718470239357,-6702.6279,0.00013497,2]
[329590388,1718470239370,-33526.6577,0.00013497,2]
[329590389,1718470239406,-30664.0076,0.00013497,2]
[329590390,1718470239443,-500.0,0.000135,4]
[329590391,1718470239457,-19830.5155173,0.00013524,2]
[329590392,1718470239471,-680.0,0.00013555,2]
[329590393,1718470239496,-475.34213327,0.00013594,2]
[329590394,1718470239516,-365.72100783,0.00013594,2]
[329590395,1718470239549,-325.50658036,0.00013594,2]
[329590396,1718470239561,-189.04293149,0.00013594,2]
[329590397,1718470239598,-37339.57888949,0.00013597,2]
[329590398,1718470239622,-6463.0961,0.00013597,2]
[329590399,1718470239633,-700.0,0.000136,4]
[329590400,1718470239646,-410.93970272,0.00013695,2]
[329590401,1718470239659,-820.95,0.00013699,2]
[329590402,1718470239672,-261.73,0.00013699,2]
[329590403,1718470239691,-500.0,0.000137,2]
[329590404,1718470239717,-1000.0,0.000137,5]
[329590405,1718470239742,-1000.0,0.000137,2]
[329590406,1718470239770,-1300.0,0.000138,5]
[329590407,1718470239790,-334.26585844,0.00013856,2]
[329590408,1718470239816,-1660.20126,0.0001386,2]
[329590409,1718470239852,-500.0,0.00013887,2]
[329590410,1718470239872,-500.0,0.00013888,2]
[329590411,1718470239913,-200.0,0.00013888,2]
[329590412,1718470239925,-219.8,0.0001389,3]
[329590413,1718470239939,-752.03196948,0.000139,2]
[329590414,1718470239957,-1132.42839464,0.000139,2]
[329590415,1718470240009,-173.47266718,0.000139,2]
[329590416,1718470240075,-200.0,0.000139,5]
[329590417,1718470240105,-16350.96072213,0.000139,2]
[329590418,1718470240128,-7500.0,0.000139,2]
[329590419,1718470240195,-167.87917179,0.000139,2]
[329590420,1718470240234,-2710.25541972,0.000139,2]
[329590421,1718470240256,-334.76566712,0.000139,2]
[329590422,1718470240288,-2064.40088376,0.000139,2]
[329590423,1718470240330,-175.81918872,0.000139,2]
[329590424,1718470240349,-152.51896572,0.000139,2]
[329590425,1718470240366,-383.42204089,0.00013961,2]
[329590426,1718470240392,-186.710116,0.00013973,2]
[329590427,1718470240420,-4610.3336856,0.00013983,2]
[329590428,1718470240450,-152.01,0.0001399,2]
[329590429,1718470240503,-152.01,0.0001399,2]
[329590430,1718470240538,-152.01,0.0001399,2]
[329590431,1718470240574,-152.01,0.0001399,2]
[329590432,1718470240588,-152.01,0.0001399,2]
[329590433,1718470240599,-152.01,0.0001399,2]
[329590434,1718470240626,-152.01,0.0001399,2]
[329590435,1718470240639,-152.01,0.0001399,2]
[329590436,1718470240651,-152.01,0.0001399,2]
[329590437,1718470240673,-152.01,0.0001399,2]
[329590438,1718470240700,-383.54522985,0.0001399,2]
[329590439,1718470240718,-383.54522985,0.0001399,2]
[329590440,1718470240737,-383.54522985,0.0001399,2]
[329590441,1718470240764,-155.0,0.00013996,2]
[329590442,1718470240825,-499.00658478,0.00013996,2]
[329590443,1718470240859,-180.77044057,0.00013996,2]
[329590444,1718470240893,-290.5822337,0.00013996,2]
[329590445,1718470240906,-352.32141165,0.00013996,2]
[329590446,1718470240943,-160.54086438,0.00013996,2]
[329590447,1718470240974,-268.40583128,0.00013996,2]
[329590448,1718470241004,-218.5262732,0.00013997,2]
[329590449,1718470241073,-1827.80332692,0.00013997,2]
[329590450,1718470241095,-480.55494428,0.00013998,2]
[329590451,1718470241167,-1387.8905143,0.00013998,2]
[329590452,1718470241213,-429.0635173,0.00013998,2]
[329590453,1718470241239,-156.34146276,0.00013998,2]
[329590454,1718470241257,-1547.36554164,0.00013998,2]
[329590455,1718470241330,-680.49299315,0.00013998,2]
[329590458,1718470241402,-7514.06445487,0.00013998,2]
[329590459,1718470241444,-791.70907179,0.00013998,2]
[329590460,1718470241464,-247.33904018,0.00013998,2]
[329590461,1718470241478,-245.86490042,0.00013998,2]
[329590462,1718470241496,-732.08359016,0.00013998,2]
[329590463,1718470241509,-304.53387098,0.00013998,2]
[329590464,1718470241545,-156.25165599,0.00013998,2]
[329590465,1718470241566,-264.52157603,0.00013998,2]
[329590466,1718470241608,-183.20437394,0.00013998,2]
[329590467,1718470241638,-277.46160255,0.00013998,2]
[329590468,1718470241674,-176.51048241,0.00013998,2]
[329590469,1718470241716,-212.24867067,0.00013998,2]
[329590470,1718470241760,-506.54758575,0.00013998,2]
[329590471,1718470241796,-244.62743291,0.00013998,2]
[329590472,1718470241827,-263.44413224,0.00013998,2]
[329590473,1718470241841,-688.42270304,0.00013998,2]
[329590474,1718470241856,-3063.71989598,0.00013998,2]
[329590475,1718470241870,-1271.98730294,0.00013998,2]
[329590476,1718470241895,-156.32206566,0.00013998,2]
[329590477,1718470241934,-171.59248728,0.00013998,2]
[329590478,1718470241957,-275.46328575,0.00013998,2]
[329590479,1718470241995,-155.27298402,0.00013998,2]
[329590480,1718470242027,-225.56608327,0.00013998,2]
[329590481,1718470242049,-829.43003749,0.00013998,2]
[329590482,1718470242077,-251.02805962,0.00013998,2]
[329590483,1718470242098,-204.83680168,0.00013998,2]
[329590484,1718470242140,-217.32072534,0.00013998,2]
[329590485,1718470242159,-156.02499834,0.00013998,2]
[329590486,1718470242181,-243.71029721,0.00013998,2]
[329590487,1718470242233,-233.7079612,0.00013998,2]
[329590489,1718470242251,-295.92561526,0.00013998,2]
[329590492,1718470242303,-155.40232587,0.00013998,2]
[329590493,1718470242332,-155.0,0.00013998,2]
[329590495,1718470242347,-162.55802593,0.00013998,2]
[329590496,1718470242372,-157.32472407,0.00013998,2]
[329590497,1718470242386,-200.38251979,0.00013998,2]
[329590498,1718470242405,-159.88429364,0.00013998,2]
[329590499,1718470242435,-156.55148448,0.00013998,2]
[329590500,1718470242457,-157.0362103,0.00013998,2]
[329590501,1718470242474,-166.55508735,0.00013998,2]
[329590502,1718470242520,-3016.07364784,0.00013998,2]
[329590503,1718470242540,-198.86105906,0.00013998,2]
[329590504,1718470242572,-155.0,0.00013998,2]
[329590505,1718470242590,-156.45375527,0.00013998,2]
[329590506,1718470242617,-155.0,0.00013998,2]
[329590507,1718470242640,-454.03839842,0.00013998,2]
[329590508,1718470242654,-199.64682398,0.00013998,2]
[329590509,1718470242678,-723.69746593,0.00013998,2]
[329590510,1718470242698,-2060.62366659,0.00013998,2]
[329590511,1718470242728,-523.92588046,0.00013998,2]
[329590512,1718470242758,-264.29301922,0.00013998,2]
[329590513,1718470242786,-408.70433109,0.00013998,2]
[329590514,1718470242809,-156.52071995,0.00013998,2]
[329590515,1718470242852,-238.37315842,0.00013998,2]
[329590516,1718470242864,-619.28128396,0.00013998,2]
[329590517,1718470242901,-241.34819951,0.00013998,2]
[329590518,1718470242913,-3107.38825477,0.00013998,2]
[329590519,1718470242929,-1491.5398984,0.00013998,2]
[329590520,1718470242946,-156.56677774,0.00013998,2]
[329590521,1718470242959,-155.13828791,0.00013998,2]
[329590522,1718470242971,-192.67532117,0.00013999,2]
[329590523,1718470242985,-150.0,0.00013999,2]
[329590524,1718470243004,-154190.96434751,0.00014,2]
[329590525,1718470243022,-5287.45538079,0.00014,2]
[329590526,1718470243039,-9690.26129322,0.00014,2]
[329590527,1718470243073,-274825.82265596,0.00014,2]
[329590528,1718470243200,-2209.27292493,0.00014,2]
[329590529,1718470243219,-81875.02165,0.00014,2]
[329590530,1718470243255,-1033.67731804,0.00014,2]
[329590531,1718470243568,-1542.82918872,0.00014,2]
[329590532,1718470243581,-16069.86434056,0.00014,2]
[329590541,1718470245243,-368748.98480024,0.00014,2]
[329590542,1718470245840,-0.007581,0.00014,2]
[329590543,1718470245904,-2605.43159058,0.00014,2]
[329590544,1718470246181,-174769.43109617,0.00014,2]
[329590545,1718470246212,-5513.52426805,0.00014,2]
[329590546,1718470246237,-2432.88931167,0.00014,2]
[329590554,1718470248356,-8714.34147878,0.00014,2]
[329590566,1718470248606,-109.55283323,0.00014,2]
[329590569,1718470248636,-1570.13489928,0.00014,2]
[329590570,1718470248651,-3024.34544581,0.00014,2]
[329590572,1718470248665,-2850.26534193,0.00014,2]
[329590574,1718470248681,-13100.53383658,0.00014,2]
[329590576,1718470248696,-4196.91412218,0.00014,2]
[329590578,1718470248719,-66600.0,0.00014,2]
[329590580,1718470248734,-2847.59268996,0.00014,2]
[329590584,1718470249293,-85894.17206975,0.00014,2]
[329590585,1718470249310,-7021.37495721,0.00014,2]
[329590586,1718470249356,-1480.66017408,0.00014,2]
[329590587,1718470249376,-684.46588777,0.00014,2]
[329590588,1718470249397,-327.34113249,0.00014,2]
[329590589,1718470250109,-3023.72766417,0.00014,2]
[329590597,1718470250864,-809.68945,0.00014,2]
[329590599,1718470250896,-1463.87920513,0.00014,2]
[329590602,1718470250955,-17846.22293938,0.00014,2]
[329590605,1718470250983,-667.90314,0.00014,2]
[329590607,1718470251681,-694.21,0.00014,2]
[329590608,1718470251699,-34751.1085694,0.00014,2]
[329590609,1718470251714,-2648.93590099,0.00014,2]
[329590610,1718470251730,-1305.19867981,0.00014,2]
[329590611,1718470251756,-792.44,0.00014,2]
[329590630,1718470738838,-150.0,0.00010918,2]
[329590631,1718470738872,-1338.74513096,0.0001092,2]
[329590632,1718470738908,-273.58,0.00010921,2]
[329590633,1718470738952,-413.84,0.00011686,2]
[329590634,1718470756889,19582.05619718,0.00010919,2]
[329590636,1718470872549,262.96555812,0.00010919,2]
[329590637,1718470927986,322.58844065,8.189e-05,2]
[329590638,1718470961644,155.0,0.00010919,2]
[329590639,1718470979627,155.0,8.189e-05,2]
[329590641,1718470995848,199.78350406,8.189e-05,2]
[329590645,1718471175209,415.38,0.00011297,2]
[329590646,1718471246510,-250.0,0.00013071,2]
[329590647,1718471246543,-408.0,0.0001319,2]
[329590648,1718471246593,-2337.46,0.0001327,2]
[329590649,1718471246626,-719.12,0.00013292,2]
[329590650,1718471246658,-601.38,0.00013302,2]
[329590651,1718471246693,-150.0,0.00013413,2]
[329590652,1718471246766,-300.0,0.00013413,2]
[329590653,1718471246801,-6931.2632589,0.00013414,2]
[329590654,1718471246845,-155.0,0.00013422,2]
[329590655,1718471246891,-1250.11653251,0.00013422,2]
[329590656,1718471246927,-2444.2403867,0.00013424,2]
[329590657,1718471252164,-163.17024102,0.00013424,2]
[329590660,1718471409886,150.0,0.00013999,7]
[329590661,1718471410920,150.0,0.00013999,7]
[329590667,1718471433194,-591.227928,0.00013355,2]
[329590668,1718471433217,-155.0,0.00013422,2]
[329590669,1718471433231,-875.65443275,0.00013423,2]
[329590670,1718471433254,-362.81476569,0.00013424,2]
[329590671,1718471433273,-6362.07337228,0.00013424,2]
[329590672,1718471433291,-93.63409685,0.00013424,2]
[329590673,1718471433321,-666.42,0.00013424,2]
[329590674,1718471433593,-602.4599999,0.00013424,2]
[329590675,1718471433637,-331.9599993,0.00013424,2]
[329590676,1718471433664,-961.14233114,0.00013424,2]
[329590677,1718471434311,-4e-08,0.00013424,2]
[329590678,1718471434988,-1450.05800255,0.00013424,2]
[329590681,1718471439631,-465.03184456,0.00013424,2]
[329590682,1718471439828,-673.74485055,0.00013424,2]
[329590683,1718471439860,-10853.4041801,0.00013424,2]
[329590684,1718471439882,-339.13224916,0.00013424,2]
[329590685,1718471440584,-3396.04284698,0.00013424,2]
[329590686,1718471440905,-827.75998797,0.00013424,2]
[329590899,1718471445177,-2125.82655761,0.00013424,2]
[329591002,1718471446937,-458.94774531,0.00013424,2]
[329591033,1718471447563,-1775.30130806,0.00013424,2]
[329591053,1718471447994,-52041.83499992,0.00013424,2]
[329591055,1718471448006,-11999.92521814,0.00013519,2]
[329591057,1718471448021,-1350.38478186,0.00013519,2]
[329591060,1718471448039,-415.38,0.00013561,2]
[329591062,1718471448056,-592.0,0.00013641,2]
[329591063,1718471448068,-250.0,0.00013641,2]
[329591066,1718471448084,-410.47,0.00013699,2]
[329591068,1718471448101,-277.8,0.00013699,2]
[329591070,1718471448131,-500.0,0.00013888,2]
[329591072,1718471448151,-200.0,0.00013888,2]
[329591074,1718471448168,-262.18,0.0001389,2]
[329591076,1718471448208,-2383.28505014,0.00013897,6]
[329591079,1718471448248,-473.26955168,0.00013897,6]
[329591081,1718471448271,-275.08539818,0.00013897,6]
[329591083,1718471448307,-415.55752037,0.000139,2]
[329591085,1718471448325,-500.0,0.000139,2]
[329591087,1718471448344,-180.14282553,0.000139,2]
[329591090,1718471448378,-8549.71425592,0.000139,2]
[329591093,1718471448451,-1450.28574408,0.000139,2]
[329591095,1718471448487,-707.23117212,0.000139,2]
[329591096,1718471448502,-280.14868365,0.000139,2]
[329591106,1718471448668,-397.63820964,0.000139,2]
[329591108,1718471448684,-6246.50973598,0.000139,2]
[329591110,1718471448710,-575.70337073,0.000139,2]
[329591113,1718471448761,-258.12664719,0.000139,2]
[329591115,1718471448789,-14988.38066198,0.000139,2]
[329591116,1718471448809,-334.76566712,0.000139,2]
[329591118,1718471448829,-1806.83694648,0.000139,2]
[329591121,1718471448842,-548.70135201,0.000139,2]
[329591123,1718471448864,-466.30124987,0.00013905,2]
[329591124,1718471448879,-152.03,0.0001399,2]
[329591127,1718471448891,-2196.27253145,0.00013998,2]
[329591129,1718471448945,-3102.76307355,0.00013998,2]
[329591132,1718471448977,-4294.52783659,0.00013998,2]
[329591135,1718471448993,-268.9412805,0.00013998,2]
[329591137,1718471449021,-482.31770183,0.00013998,2]
[329591139,1718471449051,-667.30188253,0.00013998,2]
[329591141,1718471449069,-3612.90031193,0.00013998,2]
[329591143,1718471449082,-155.0,0.00013998,2]
[329591145,1718471449100,-365.36443535,0.00013999,2]
[329591147,1718471449116,-242.10438069,0.00013999,2]
[329591148,1718471449145,-7437.33,0.00013999,2]
[329591149,1718471449159,-150.0,0.00013999,2]
[329591151,1718471449171,-2334.28053096,0.00014,2]
[329591154,1718471449275,-550.0,0.00014,2]
[329591155,1718471449312,-672.00654243,0.00014,2]
[329591198,1718471450447,-544.70710527,0.00014,2]
[329591201,1718471450473,-755.58943814,0.00014,2]
[329591203,1718471450521,-1529.12617148,0.00014,2]
[329591204,1718471450535,-3015.24475082,0.00014,2]
[329591219,1718471450844,-2061.611112,0.00014,2]
[329591225,1718471450945,-35940.39869707,0.00014,2]
[329591228,1718471450963,-150860.81469697,0.00014,2]
[329591231,1718471451006,-668.2233,0.00014,2]
[329591239,1718471451237,-631.34941224,0.00014,2]
[329591240,1718471451470,-155.0,0.00013423,2]
[329591241,1718471451481,-20077.31570767,0.00014,2]
[329591337,1718472571170,-1133.8692467,0.00012456,2]
[329591338,1718472571241,-423.86,0.00012457,2]
[329591339,1718472609693,179.9246523,0.00013999,7]
[329591341,1718472633300,-621.8122,0.00013424,2]
[329591342,1718472633313,-205.23,0.00013866,2]
[329591343,1718472633345,-500.0,0.00013888,2]
[329591344,1718472633367,-200.0,0.00013888,2]
[329591345,1718472633390,-2139.9678,0.000139,2]
[329591346,1718472633733,-24889.3786,0.000139,2]
[329591347,1718472633750,-167.87917176,0.000139,2]
[329591348,1718472633761,-180.14282553,0.000139,2]
[329591349,1718472633779,-1000.0,0.000139,2]
[329591350,1718472633793,-618.82727564,0.000139,2]
[329591351,1718472633823,-2432.32550204,0.000139,2]
[329591352,1718472633834,-169.07515286,0.000139,2]
[329591353,1718472633848,-704.73916216,0.000139,2]
[329591354,1718472633862,-222.24,0.00013904,2]
[329591355,1718472633890,-165.91535938,0.0001399,2]
[329591356,1718472633904,-600.1275224,0.00013998,2]
[329591357,1718472633944,-200.06754006,0.00013998,2]
[329591358,1718472633970,-204.95246598,0.00013998,2]
[329591359,1718472633986,-1725.03769617,0.00013998,2]
[329591360,1718472634009,-155.0,0.00013998,2]
[329591361,1718472634032,-397.94544795,0.00013998,2]
[329591362,1718472634045,-304.61863798,0.00013998,2]
[329591363,1718472634073,-385.87766036,0.00013998,2]
[329591364,1718472634084,-755.91283113,0.00013998,2]
[329591365,1718472634108,-2192.06643308,0.00013999,2]
[329591366,1718472634120,-7547.14582523,0.00013999,2]
[329591367,1718472634142,-994.8481829,0.00013999,2]
[329591368,1718472634163,-150.0,0.00013999,2]
[329591369,1718472634216,-481723.513912,0.00014,2]
[329591370,1718472634227,-5193.7191832,0.00014,2]
[329591371,1718472634243,-1362.97468143,0.00014,2]
[329591372,1718472634253,-155.50066545,0.00014,2]
[329591373,1718472634270,-5832.90972913,0.00014,2]
[329591378,1718472635015,-11985.92093339,0.00014,2]
[329591380,1718472635165,-17174.91366198,0.00014,2]
[329591381,1718472635178,-5401.77045646,0.00014,2]
[329591385,1718472642776,-297.205001,0.00014,2]
[329591386,1718472642881,-380.97318082,0.00014,2]
[329591387,1718472643208,-427.20419193,0.00014,2]
[329591388,1718472643249,-51433.24135567,0.00014,2]
[329591389,1718472643265,-129480.71459578,0.00014,2]
[329591390,1718472643489,-6512.96046108,0.00014,2]
[329591391,1718472643511,-368.75780359,0.00014,2]
[329591392,1718472643646,-6901.89399999,0.00014,2]
[329591395,1718472643997,-1839.06690501,0.00014,2]
[329591396,1718472644046,-159523.75116202,0.00014,2]
[329591397,1718472644233,-626.34189999,0.00014,2]
[329591398,1718472644253,-5854.6869003,0.00014,2]
[329591399,1718472644268,-4906.4475,0.00014,2]
[329591400,1718472644479,-275.346,0.00014,2]
[329591401,1718472644494,-20094.3,0.00014,2]
[329591402,1718472645434,-2122.79068167,0.00014,2]
[329591403,1718472645486,-811.97160252,0.00014,2]
[329591404,1718472645550,-988.0,0.00014,2]
[329591405,1718472645720,-520.48129284,0.00014,2]
[329591406,1718472645847,-7527.52000004,0.00014,2]
[329591407,1718472646039,-1362.8926395,0.00014,2]
[329591408,1718472646082,-11260.56224255,0.00014,2]
[329591409,1718472646102,-823.41300002,0.00014,2]
[329591410,1718472646133,-3391.12016713,0.00014,2]
[329591420,1718472647048,-67153.44539544,0.00014,2]
[329591423,1718472647172,-1662.96483463,0.00014,2]
[329591431,1718472647876,-526.47000001,0.00014,2]
[329591432,1718472647891,-1829.7458757,0.00014,2]
[329591433,1718472647909,-2853.691825,0.00014,2]
[329591434,1718472648118,-16918.89905673,0.00014,2]
[329591435,1718472648205,-668.25474719,0.00014,2]
[329591436,1718472648352,-477.47355398,0.00014,2]
[329591437,1718472648563,-30559.40352601,0.00014,2]
[329591438,1718472649134,-3574.65,0.00014,2]
[329591439,1718472649405,-445.62000001,0.00014,2]
[329591442,1718472656411,155.0,0.00012457,2]
[329591443,1718472729249,155.0,0.00012457,2]
[329591444,1718472845484,1441.86544382,0.000118,2]
[329591445,1718472895077,1364.49067987,0.000118,2]
[329591447,1718472915329,713.97859753,0.000118,2]
[329591449,1718472957087,243.65091575,0.000101,2]
[329591450,1718473012441,426.62,0.00010756,2]
[329591452,1718473077564,22540.45553206,0.00010756,2]
[329591453,1718473100364,500.0,0.00026,120]
[329591454,1718473182051,-629.92735928,0.00010755,2]
[329591455,1718473182110,-300.0,0.00010755,2]
[329591456,1718473182165,-9168.07264072,0.00010756,2]
[329591457,1718473187591,-10000.0,0.00010756,2]
[329591458,1718473209292,-300.0,0.00010755,2]
[329591459,1718473209337,-9778.0,0.00010756,2]
[329591460,1718473233543,-9148.0,0.00010756,2]
[329591461,1718473256526,-9880.0,0.00010756,2]
[329591466,1718473313477,-2353.06060467,0.00010753,2]
[329591467,1718473313585,-3882.8141,0.00010753,2]
[329591468,1718473313640,-911.61457668,0.00010754,2]
[329591469,1718473313771,-3133.51071865,0.00010754,2]
[329591470,1718473319260,-4984.60621434,0.00010754,2]
[329591471,1718473319313,-472.93297445,0.00010755,2]
[329591472,1718473319353,-4542.46081121,0.00010756,2]
[329591473,1718473319805,-10000.0,0.00010756,2]
[329591474,1718473320619,-263.10733723,0.00010754,2]
[329591475,1718473320666,-9736.89266277,0.00010756,2]
[329591476,1718473321227,-10000.0,0.00010756,2]
[329591477,1718473321851,-10000.0,0.00010756,2]
[329591478,1718473322410,-10000.0,0.00010756,2]
[329591479,1718473322994,-10000.0,0.00010756,2]
[329591480,1718473323637,-10000.0,0.00010756,2]
[329591481,1718473324240,-300.0,0.00010755,2]
[329591482,1718473324295,-9700.0,0.00010756,2]
[329591483,1718473334933,-10000.0,0.00010756,2]
[329591484,1718473360252,-263.10733723,0.00010754,2]
[329591485,1718473360303,-629.92735928,0.00010755,2]
[329591486,1718473360345,-463.24276185,0.00010756,2]
[329591487,1718473360404,-386.17,0.00010959,2]
[329591488,1718473360449,-420.0,0.00011821,2]
[329591489,1718473366020,7837.55254164,0.00010754,2]
[329591490,1718473366053,10000.0,0.00010754,2]
[329591491,1718473366089,10000.0,0.00010754,2]
[329591492,1718473366175,10000.0,0.00010754,2]
[329591493,1718473366214,10000.0,0.00010754,2]
[329591494,1718473366274,10000.0,0.00010754,2]
[329591495,1718473369549,-9700.0,0.00010754,2]